[Event "*** Titled Tuesday Blitz"]
[Site "Chess.com"]
[Date "2021.04.27"]
[Round "6"]
[White "TimofeevAr"]
[Black "Konavets"]
[Result "0-1"]
[WhiteElo "2826"]
[BlackElo "2949"]
[TimeControl "180+1"]
[EndTime "11:07:59 PDT"]
[Termination "Konavets won by resignation"]

1. c4 {[%clk 0:03:00.9]} 1... e5 {[%clk 0:02:59.7]} 2. e3 {[%clk 0:03:00.7]}
2... Nf6 {[%clk 0:02:59.4]} 3. Nc3 {[%clk 0:03:00.3]} 3... Bb4 {[%clk
0:02:57.8]} 4. Nge2 {[%clk 0:02:59.6]} 4... O-O {[%clk 0:02:57.6]} 5. a3 {[%clk
0:02:59.6]} 5... Bxc3 {[%clk 0:02:49.8]} 6. Nxc3 {[%clk 0:02:59.5]} 6... Nc6
{[%clk 0:02:50.7]} 7. Be2 {[%clk 0:02:58.7]} 7... d6 {[%clk 0:02:49.6]} 8. O-O
{[%clk 0:02:58.3]} 8... Bf5 {[%clk 0:02:49.1]} 9. d3 {[%clk 0:02:58.2]} 9... h6
{[%clk 0:02:47]} 10. b4 {[%clk 0:02:57.7]} 10... Re8 {[%clk 0:02:46.3]} 11. Bb2
{[%clk 0:02:57.4]} 11... Qd7 {[%clk 0:02:46.2]} 12. Rc1 {[%clk 0:02:53.7]} 12...
Ne7 {[%clk 0:02:46.4]} 13. Bf3 {[%clk 0:02:48.4]} 13... c6 {[%clk 0:02:45.4]}
14. b5 {[%clk 0:02:48]} 14... Ng6 {[%clk 0:02:44.3]} 15. bxc6 {[%clk 0:02:30.2]}
15... bxc6 {[%clk 0:02:45.2]} 16. Ne4 {[%clk 0:02:30.3]} 16... Bxe4 {[%clk
0:02:26.7]} 17. Bxe4 {[%clk 0:02:29.6]} 17... Nxe4 {[%clk 0:02:25]} 18. dxe4
{[%clk 0:02:29.7]} 18... c5 {[%clk 0:02:24.3]} 19. Bc3 {[%clk 0:02:21]} 19...
Qc6 {[%clk 0:02:16.9]} 20. Qc2 {[%clk 0:02:20.5]} 20... Rab8 {[%clk 0:02:12.7]}
21. Rfd1 {[%clk 0:02:19.7]} 21... h5 {[%clk 0:02:10.4]} 22. h3 {[%clk 0:02:17]}
22... h4 {[%clk 0:02:05.7]} 23. Rb1 {[%clk 0:02:12.9]} 23... Rb6 {[%clk
0:02:04.2]} 24. Qd3 {[%clk 0:02:04.4]} 24... Reb8 {[%clk 0:01:59]} 25. Rxb6
{[%clk 0:02:03.7]} 25... Rxb6 {[%clk 0:01:59.9]} 26. Ba5 {[%clk 0:02:03.3]}
26... Ra6 {[%clk 0:01:59.7]} 27. Be1 {[%clk 0:02:01.1]} 27... Nf8 {[%clk
0:01:43.9]} 28. f3 {[%clk 0:01:59]} 28... g5 {[%clk 0:01:44.1]} 29. f4 {[%clk
0:01:32.3]} 29... Qa4 {[%clk 0:01:30.5]} 30. fxg5 {[%clk 0:01:28.3]} 30... Ng6
{[%clk 0:01:30.2]} 31. Bf2 {[%clk 0:01:20.4]} 31... Qxa3 {[%clk 0:01:29]} 32.
Qxa3 {[%clk 0:01:20.2]} 32... Rxa3 {[%clk 0:01:29.9]} 33. Rxd6 {[%clk
0:01:20.7]} 33... Ra4 {[%clk 0:01:30.2]} 34. Rd7 {[%clk 0:01:10.4]} 34... Rxc4
{[%clk 0:01:29.8]} 35. Rxa7 {[%clk 0:01:10.4]} 35... Rxe4 {[%clk 0:01:20]} 36.
Rc7 {[%clk 0:01:10.2]} 36... Rc4 {[%clk 0:01:20.2]} 37. g3 {[%clk 0:01:05.7]}
37... e4 {[%clk 0:01:02.3]} 38. gxh4 {[%clk 0:01:05.4]} 38... Ne5 {[%clk
0:01:02.3]} 39. Kg2 {[%clk 0:01:05.4]} 39... Rc2 {[%clk 0:01:01.5]} 40. Kg3
{[%clk 0:01:04.5]} 40... Nd3 {[%clk 0:01:01.8]} 41. Bg1 {[%clk 0:01:03.2]} 41...
c4 {[%clk 0:00:56.7]} 42. h5 {[%clk 0:01:01.7]} 42... c3 {[%clk 0:00:56.8]} 43.
g6 {[%clk 0:01:01.4]} 43... fxg6 {[%clk 0:00:54.7]} 44. hxg6 {[%clk 0:01:01.8]}
44... Rc1 {[%clk 0:00:45.1]} 45. Bh2 {[%clk 0:00:57.9]} 45... c2 {[%clk
0:00:45.5]} 46. h4 {[%clk 0:00:55.3]} 46... Nb4 {[%clk 0:00:35.8]} 47. h5 {[%clk
0:00:53.8]} 47... Rf1 {[%clk 0:00:29.8]} 48. h6 {[%clk 0:00:51.1]} 48... c1=Q
{[%clk 0:00:29.8]} 49. h7+ {[%clk 0:00:50.3]} 49... Kh8 {[%clk 0:00:29.6]} 50.
Rxc1 {[%clk 0:00:50.3]} 50... Rxc1 {[%clk 0:00:29.9]} 51. Kg4 {[%clk 0:00:39.4]}
51... Nc6 {[%clk 0:00:30.1]} 52. Bf4 {[%clk 0:00:39.4]} 52... Rg1+ {[%clk
0:00:29.9]} 53. Kh5 {[%clk 0:00:39.4]} 53... Rf1 {[%clk 0:00:19.5]} 54. Kh6
{[%clk 0:00:26.3]} 54... Rh1+ {[%clk 0:00:18.2]} 55. Kg5 {[%clk 0:00:26.6]}
55... Kg7 {[%clk 0:00:18.9]} 56. Bd6 {[%clk 0:00:21.5]} 56... Rg1+ {[%clk
0:00:13.3]} 57. Kf5 {[%clk 0:00:21.3]} 57... Rf1+ {[%clk 0:00:11.9]} 58. Kg5
{[%clk 0:00:21.4]} 58... Rd1 {[%clk 0:00:11.7]} 59. Ba3 {[%clk 0:00:20.4]} 59...
Rd5+ {[%clk 0:00:11.4]} 60. Kf4 {[%clk 0:00:19.2]} 60... Rb5 {[%clk 0:00:08.8]}
61. Bf8+ {[%clk 0:00:17]} 61... Kh8 {[%clk 0:00:08.6]} 62. Ba3 {[%clk
0:00:11.5]} 62... Ne5 {[%clk 0:00:06.9]} 63. Bb2 {[%clk 0:00:05.1]} 63... Rxb2
{[%clk 0:00:06.5]} 64. Kxe5 {[%clk 0:00:06]} 64... Kg7 {[%clk 0:00:06.8]} 65.
Kxe4 {[%clk 0:00:05.6]} 65... Rb6 {[%clk 0:00:07]} 66. Kf5 {[%clk 0:00:05.8]}
66... Rf6+ {[%clk 0:00:07.3]} 67. Ke5 {[%clk 0:00:06.3]} 67... Rxg6 {[%clk
0:00:07.5]} 68. Kf5 {[%clk 0:00:06.6]} 68... Kxh7 {[%clk 0:00:08.1]} 69. e4
{[%clk 0:00:06.9]} 69... Kg7 {[%clk 0:00:09]} 70. e5 {[%clk 0:00:07.4]} 70...
Kf7 {[%clk 0:00:09.9]} 71. e6+ {[%clk 0:00:07.9]} 71... Rxe6 {[%clk 0:00:09.8]}
0-1

[Event "*** Titled Tuesday Blitz"]
[Site "Chess.com"]
[Date "2021.04.27"]
[Round "6"]
[White "AlexTriapishko"]
[Black "Oleksandr_Bortnyk"]
[Result "1-0"]
[WhiteElo "2883"]
[BlackElo "2962"]
[TimeControl "180+1"]
[EndTime "11:08:05 PDT"]
[Termination "AlexTriapishko won by checkmate"]

1. d4 {[%clk 0:03:00.1]} 1... Nf6 {[%clk 0:02:55.1]} 2. Bg5 {[%clk 0:03:00.1]}
2... g6 {[%clk 0:02:46.9]} 3. Bxf6 {[%clk 0:02:58.4]} 3... exf6 {[%clk
0:02:47.8]} 4. g3 {[%clk 0:02:59.3]} 4... c6 {[%clk 0:02:44.6]} 5. Bg2 {[%clk
0:02:59.5]} 5... Qb6 {[%clk 0:02:44.7]} 6. b3 {[%clk 0:02:58.2]} 6... d5 {[%clk
0:02:43.5]} 7. e3 {[%clk 0:02:58.4]} 7... a5 {[%clk 0:02:39.8]} 8. a3 {[%clk
0:02:51.7]} 8... h5 {[%clk 0:02:35]} 9. h4 {[%clk 0:02:51]} 9... Bg4 {[%clk
0:02:34.2]} 10. Ne2 {[%clk 0:02:40.9]} 10... Bd6 {[%clk 0:02:32.8]} 11. Nd2
{[%clk 0:02:36.8]} 11... a4 {[%clk 0:02:30.5]} 12. b4 {[%clk 0:02:32.3]} 12...
Qa6 {[%clk 0:02:28.2]} 13. Bf3 {[%clk 0:02:09]} 13... Bf5 {[%clk 0:02:00.5]} 14.
e4 {[%clk 0:01:55.3]} 14... Be6 {[%clk 0:01:48.5]} 15. Nc3 {[%clk 0:01:43.3]}
15... O-O {[%clk 0:01:46.9]} 16. Qe2 {[%clk 0:01:17.6]} 16... Qb6 {[%clk
0:01:46]} 17. Qd3 {[%clk 0:01:05.4]} 17... Rd8 {[%clk 0:01:21.4]} 18. exd5
{[%clk 0:00:50.4]} 18... cxd5 {[%clk 0:01:22.3]} 19. O-O {[%clk 0:00:42.8]}
19... Bf8 {[%clk 0:01:19.4]} 20. Rfe1 {[%clk 0:00:30.8]} 20... Bh6 {[%clk
0:01:17.2]} 21. Nf1 {[%clk 0:00:22.1]} 21... Bf5 {[%clk 0:01:06.8]} 22. Qb5
{[%clk 0:00:20.7]} 22... Qxb5 {[%clk 0:00:52.5]} 23. Nxb5 {[%clk 0:00:20.5]}
23... Na6 {[%clk 0:00:53.4]} 24. Nc3 {[%clk 0:00:12.6]} 24... Nc7 {[%clk
0:00:45.7]} 25. Re2 {[%clk 0:00:06.6]} 25... Rac8 {[%clk 0:00:36.4]} 26. Rd1
{[%clk 0:00:06.6]} 26... b5 {[%clk 0:00:34.4]} 27. Ne3 {[%clk 0:00:06.2]} 27...
Be6 {[%clk 0:00:34]} 28. Ng2 {[%clk 0:00:05.5]} 28... Kg7 {[%clk 0:00:33.5]} 29.
Ne3 {[%clk 0:00:04.6]} 29... Rd6 {[%clk 0:00:32.9]} 30. Nb1 {[%clk 0:00:03.9]}
30... Rc6 {[%clk 0:00:31]} 31. c3 {[%clk 0:00:04.4]} 31... Rd8 {[%clk
0:00:30.9]} 32. Kg2 {[%clk 0:00:04.9]} 32... Na8 {[%clk 0:00:31.3]} 33. Nc2
{[%clk 0:00:04.2]} 33... Nb6 {[%clk 0:00:31]} 34. Ne1 {[%clk 0:00:04.1]} 34...
Bf5 {[%clk 0:00:28.3]} 35. Nd3 {[%clk 0:00:04.5]} 35... Bxd3 {[%clk 0:00:23.8]}
36. Rxd3 {[%clk 0:00:05.4]} 36... Nc4 {[%clk 0:00:24.7]} 37. Rd1 {[%clk
0:00:04.3]} 37... Kf8 {[%clk 0:00:24.8]} 38. Rde1 {[%clk 0:00:04.2]} 38... Rc7
{[%clk 0:00:25.1]} 39. Kg1 {[%clk 0:00:03.4]} 39... f5 {[%clk 0:00:25.3]} 40.
Kg2 {[%clk 0:00:03.8]} 40... Bg7 {[%clk 0:00:20.1]} 41. Kg1 {[%clk 0:00:03.9]}
41... Bf6 {[%clk 0:00:20.5]} 42. Kg2 {[%clk 0:00:04.3]} 42... Rcc8 {[%clk
0:00:20.3]} 43. Kh3 {[%clk 0:00:04.4]} 43... Rd6 {[%clk 0:00:20.5]} 44. Kg2
{[%clk 0:00:04.6]} 44... Nb6 {[%clk 0:00:18.9]} 45. Kh3 {[%clk 0:00:04.9]} 45...
Rdc6 {[%clk 0:00:19.3]} 46. Kg2 {[%clk 0:00:05.3]} 46... f4 {[%clk 0:00:18.2]}
47. gxf4 {[%clk 0:00:02.7]} 47... Bxh4 {[%clk 0:00:18.5]} 48. f5 {[%clk
0:00:03]} 48... Rd6 {[%clk 0:00:08.1]} 49. fxg6 {[%clk 0:00:02.9]} 49... fxg6
{[%clk 0:00:09]} 50. Re5 {[%clk 0:00:02.6]} 50... Rcd8 {[%clk 0:00:07.8]} 51.
Re6 {[%clk 0:00:02.9]} 51... Kf7 {[%clk 0:00:06.3]} 52. Rxd6 {[%clk 0:00:03]}
52... Rxd6 {[%clk 0:00:07.2]} 53. Re2 {[%clk 0:00:03]} 53... Bg5 {[%clk
0:00:07.6]} 54. Nd2 {[%clk 0:00:02.9]} 54... Bxd2 {[%clk 0:00:07.6]} 55. Rxd2
{[%clk 0:00:03.8]} 55... Nc4 {[%clk 0:00:08.4]} 56. Re2 {[%clk 0:00:04.3]} 56...
Nxa3 {[%clk 0:00:08.7]} 57. Re5 {[%clk 0:00:04.5]} 57... Nb1 {[%clk 0:00:07.7]}
58. Bxd5+ {[%clk 0:00:04.2]} 58... Kf6 {[%clk 0:00:07.9]} 59. Bf3 {[%clk
0:00:02.4]} 59... Nxc3 {[%clk 0:00:08.3]} 60. Rc5 {[%clk 0:00:02.8]} 60... Na2
{[%clk 0:00:07.2]} 61. Rxb5 {[%clk 0:00:03.3]} 61... Rxd4 {[%clk 0:00:07.8]} 62.
Rb6+ {[%clk 0:00:03.9]} 62... Kg5 {[%clk 0:00:08.3]} 63. b5 {[%clk 0:00:04.5]}
63... Rb4 {[%clk 0:00:07.8]} 64. Ra6 {[%clk 0:00:03.5]} 64... Nc3 {[%clk
0:00:08]} 65. b6 {[%clk 0:00:03.5]} 65... a3 {[%clk 0:00:06.5]} 66. Rxa3 {[%clk
0:00:02.4]} 66... Na4 {[%clk 0:00:07]} 67. b7 {[%clk 0:00:02]} 67... Nc5 {[%clk
0:00:07.7]} 68. Ra5 {[%clk 0:00:02]} 68... Kh4 {[%clk 0:00:04.9]} 69. Rxc5
{[%clk 0:00:02.3]} 69... g5 {[%clk 0:00:05.4]} 70. Rc4+ {[%clk 0:00:02.3]} 70...
Rxc4 {[%clk 0:00:05.5]} 71. b8=Q {[%clk 0:00:02.8]} 71... g4 {[%clk 0:00:06.4]}
72. Qd8# {[%clk 0:00:03.1]} 1-0

[Event "*** Titled Tuesday Blitz"]
[Site "Chess.com"]
[Date "2021.04.27"]
[Round "6"]
[White "Supernotar"]
[Black "Vigorito-NE"]
[Result "0-1"]
[WhiteElo "2725"]
[BlackElo "2646"]
[TimeControl "180+1"]
[EndTime "11:08:07 PDT"]
[Termination "Vigorito-NE won by checkmate"]

1. d4 {[%clk 0:03:00.9]} 1... d5 {[%clk 0:02:59.8]} 2. c4 {[%clk 0:03:00]} 2...
e6 {[%clk 0:03:00]} 3. Nf3 {[%clk 0:02:59.7]} 3... Nf6 {[%clk 0:02:59.6]} 4. e3
{[%clk 0:03:00]} 4... Be7 {[%clk 0:02:55.9]} 5. Nbd2 {[%clk 0:02:59.8]} 5... O-O
{[%clk 0:02:55.1]} 6. Bd3 {[%clk 0:03:00.1]} 6... c5 {[%clk 0:02:52.7]} 7. b3
{[%clk 0:03:00.2]} 7... cxd4 {[%clk 0:02:51.8]} 8. exd4 {[%clk 0:02:59.6]} 8...
b6 {[%clk 0:02:51.6]} 9. O-O {[%clk 0:02:59.3]} 9... Bb7 {[%clk 0:02:51.6]} 10.
Bb2 {[%clk 0:02:59.8]} 10... Nc6 {[%clk 0:02:50.9]} 11. Rc1 {[%clk 0:02:58.2]}
11... Rc8 {[%clk 0:02:47.9]} 12. Qe2 {[%clk 0:02:58.3]} 12... Re8 {[%clk
0:02:47.3]} 13. Rfd1 {[%clk 0:02:58]} 13... Na5 {[%clk 0:02:35.4]} 14. Ne5
{[%clk 0:02:54.2]} 14... dxc4 {[%clk 0:02:18.9]} 15. bxc4 {[%clk 0:02:53.7]}
15... Qc7 {[%clk 0:02:11.6]} 16. Ndf3 {[%clk 0:02:51.6]} 16... h6 {[%clk
0:02:06]} 17. h3 {[%clk 0:02:41.1]} 17... Red8 {[%clk 0:02:00.2]} 18. Bb1 {[%clk
0:02:36.2]} 18... Ba6 {[%clk 0:01:49.9]} 19. Bd3 {[%clk 0:02:32.1]} 19... Nc6
{[%clk 0:01:45.8]} 20. Nxc6 {[%clk 0:02:25.8]} 20... Qxc6 {[%clk 0:01:45.4]} 21.
d5 {[%clk 0:02:25.6]} 21... exd5 {[%clk 0:01:37.3]} 22. Qxe7 {[%clk 0:02:19.3]}
22... dxc4 {[%clk 0:01:35]} 23. Bxf6 {[%clk 0:02:09.5]} 23... Qxf6 {[%clk
0:01:34.3]} 24. Qxf6 {[%clk 0:02:05.1]} 24... gxf6 {[%clk 0:01:35.2]} 25. Bc2
{[%clk 0:01:54.7]} 25... b5 {[%clk 0:01:34.8]} 26. a3 {[%clk 0:01:51.4]} 26...
Bb7 {[%clk 0:01:33.4]} 27. Nd4 {[%clk 0:01:46.3]} 27... a6 {[%clk 0:01:29.5]}
28. Nf5 {[%clk 0:01:45.6]} 28... Kf8 {[%clk 0:01:21]} 29. Nd6 {[%clk 0:01:28]}
29... Rc7 {[%clk 0:01:14.8]} 30. Nxb7 {[%clk 0:01:25.8]} 30... Rxd1+ {[%clk
0:01:14]} 31. Rxd1 {[%clk 0:01:25.3]} 31... Rxb7 {[%clk 0:01:14.3]} 32. Kf1
{[%clk 0:01:17.7]} 32... a5 {[%clk 0:01:12.4]} 33. Ke2 {[%clk 0:01:15.9]} 33...
b4 {[%clk 0:01:12.2]} 34. axb4 {[%clk 0:01:16]} 34... axb4 {[%clk 0:01:12.5]}
35. Rd4 {[%clk 0:00:39.2]} 35... Rc7 {[%clk 0:00:40.3]} 36. Bf5 {[%clk
0:00:24.1]} 36... Rc5 {[%clk 0:00:36.3]} 37. g4 {[%clk 0:00:23.1]} 37... b3
{[%clk 0:00:34.2]} 38. Kd2 {[%clk 0:00:18]} 38... c3+ {[%clk 0:00:32.2]} 39. Kc1
{[%clk 0:00:15.5]} 39... c2 {[%clk 0:00:29.2]} 40. Rb4 {[%clk 0:00:07.5]} 40...
Rc3 {[%clk 0:00:28.6]} 41. h4 {[%clk 0:00:04]} 41... Ke7 {[%clk 0:00:28.1]} 42.
h5 {[%clk 0:00:03.5]} 42... Kd6 {[%clk 0:00:27.9]} 43. Be4 {[%clk 0:00:02.8]}
43... Kc5 {[%clk 0:00:24.6]} 44. Rb7 {[%clk 0:00:03]} 44... Kd4 {[%clk
0:00:20.5]} 45. f3 {[%clk 0:00:03]} 45... Re3 {[%clk 0:00:20.1]} 46. Kb2 {[%clk
0:00:02.9]} 46... Re1 {[%clk 0:00:20]} 47. Rc7 {[%clk 0:00:03.2]} 47... Rb1+
{[%clk 0:00:18.8]} 48. Ka3 {[%clk 0:00:03.7]} 48... c1=Q+ {[%clk 0:00:19]} 49.
Rxc1 {[%clk 0:00:04.3]} 49... Rxc1 {[%clk 0:00:19.3]} 50. Kxb3 {[%clk
0:00:05.2]} 50... Rc3+ {[%clk 0:00:18.8]} 51. Kb4 {[%clk 0:00:05.2]} 51... Rc7
{[%clk 0:00:19.4]} 52. Kb5 {[%clk 0:00:05.3]} 52... Ke3 {[%clk 0:00:19.8]} 53.
Kb6 {[%clk 0:00:05.3]} 53... Rc1 {[%clk 0:00:18.9]} 54. Kb5 {[%clk 0:00:05.3]}
54... Kf4 {[%clk 0:00:19.2]} 55. Kb4 {[%clk 0:00:04.8]} 55... Rf1 {[%clk
0:00:18.9]} 56. Bd5 {[%clk 0:00:04.9]} 56... Rxf3 {[%clk 0:00:19.2]} 57. Bxf7
{[%clk 0:00:05.1]} 57... Kxg4 {[%clk 0:00:19.2]} 58. Kc4 {[%clk 0:00:05.7]}
58... Re3 {[%clk 0:00:18.8]} 59. Kd4 {[%clk 0:00:06]} 59... Re5 {[%clk
0:00:19.2]} 60. Bg6 {[%clk 0:00:06.2]} 60... Rxh5 {[%clk 0:00:18.8]} 61. Ke3
{[%clk 0:00:06.9]} 61... Re5+ {[%clk 0:00:18.8]} 62. Kf2 {[%clk 0:00:06.9]}
62... f5 {[%clk 0:00:19.2]} 63. Bf7 {[%clk 0:00:06.8]} 63... f4 {[%clk
0:00:19.2]} 64. Bc4 {[%clk 0:00:06.6]} 64... Ra5 {[%clk 0:00:19.6]} 65. Bd3
{[%clk 0:00:06.2]} 65... h5 {[%clk 0:00:19.8]} 66. Be2+ {[%clk 0:00:06]} 66...
Kg5 {[%clk 0:00:19.3]} 67. Kf3 {[%clk 0:00:06.6]} 67... Ra3+ {[%clk 0:00:19.8]}
68. Kf2 {[%clk 0:00:06.9]} 68... h4 {[%clk 0:00:20.2]} 69. Bc4 {[%clk
0:00:05.8]} 69... h3 {[%clk 0:00:20]} 70. Bd5 {[%clk 0:00:06.4]} 70... Rd3
{[%clk 0:00:18]} 71. Be4 {[%clk 0:00:06.3]} 71... Re3 {[%clk 0:00:17.9]} 72. Bd5
{[%clk 0:00:06.5]} 72... h2 {[%clk 0:00:17.9]} 73. Kg2 {[%clk 0:00:06.6]} 73...
Re2+ {[%clk 0:00:18.1]} 74. Kh1 {[%clk 0:00:06.9]} 74... Rd2 {[%clk 0:00:18]}
75. Bf3 {[%clk 0:00:06.7]} 75... Kh4 {[%clk 0:00:18.1]} 76. Be4 {[%clk
0:00:06.8]} 76... Kg3 {[%clk 0:00:18.4]} 77. Bf3 {[%clk 0:00:07.2]} 77... Rf2
{[%clk 0:00:17.9]} 78. Bg2 {[%clk 0:00:06.6]} 78... Ra2 {[%clk 0:00:18.4]} 79.
Bf1 {[%clk 0:00:06.7]} 79... Rb2 {[%clk 0:00:18.1]} 80. Bg2 {[%clk 0:00:06.8]}
80... Rb1+ {[%clk 0:00:18.2]} 81. Bf1 {[%clk 0:00:07.7]} 81... Rxf1# {[%clk
0:00:18]} 0-1

[Event "*** Titled Tuesday Blitz"]
[Site "Chess.com"]
[Date "2021.04.27"]
[Round "6"]
[White "Jungle_Jaguar"]
[Black "CM_rui"]
[Result "1-0"]
[WhiteElo "2693"]
[BlackElo "2514"]
[TimeControl "180+1"]
[EndTime "11:08:07 PDT"]
[Termination "Jungle_Jaguar won by checkmate"]

1. e4 {[%clk 0:02:56.7]} 1... e5 {[%clk 0:02:59.7]} 2. Nf3 {[%clk 0:02:56.3]}
2... Nc6 {[%clk 0:03:00.2]} 3. Bb5 {[%clk 0:02:55.7]} 3... a6 {[%clk 0:03:00.7]}
4. Ba4 {[%clk 0:02:56]} 4... Nf6 {[%clk 0:03:01.1]} 5. O-O {[%clk 0:02:56.3]}
5... Be7 {[%clk 0:03:01.7]} 6. Re1 {[%clk 0:02:55.8]} 6... b5 {[%clk 0:03:02.3]}
7. Bb3 {[%clk 0:02:56.4]} 7... O-O {[%clk 0:03:03.1]} 8. a4 {[%clk 0:02:56.5]}
8... b4 {[%clk 0:03:01.9]} 9. d4 {[%clk 0:02:55.9]} 9... exd4 {[%clk 0:02:58.2]}
10. e5 {[%clk 0:02:45]} 10... Ne8 {[%clk 0:02:58]} 11. Nxd4 {[%clk 0:02:41.4]}
11... Nxd4 {[%clk 0:02:51.6]} 12. Qxd4 {[%clk 0:02:42.3]} 12... Bb7 {[%clk
0:02:46.9]} 13. a5 {[%clk 0:02:40.5]} 13... c5 {[%clk 0:02:36.5]} 14. Qg4 {[%clk
0:02:36.4]} 14... d5 {[%clk 0:02:20.4]} 15. Rd1 {[%clk 0:02:21.7]} 15... Qc7
{[%clk 0:01:43]} 16. Bxd5 {[%clk 0:02:12.4]} 16... Bxd5 {[%clk 0:01:38.9]} 17.
Rxd5 {[%clk 0:02:13.3]} 17... Rd8 {[%clk 0:01:34.3]} 18. Rxd8 {[%clk 0:02:07.9]}
18... Qxd8 {[%clk 0:01:25.5]} 19. Bf4 {[%clk 0:02:08]} 19... Nc7 {[%clk
0:01:22.5]} 20. Nd2 {[%clk 0:02:05.8]} 20... Ne6 {[%clk 0:01:20.7]} 21. Be3
{[%clk 0:02:03]} 21... Qc7 {[%clk 0:01:07.4]} 22. Nc4 {[%clk 0:02:01.9]} 22...
Rd8 {[%clk 0:01:08]} 23. Rd1 {[%clk 0:02:01]} 23... h6 {[%clk 0:01:03.1]} 24. h3
{[%clk 0:01:38]} 24... Bg5 {[%clk 0:00:35.8]} 25. Rxd8+ {[%clk 0:01:28.9]} 25...
Qxd8 {[%clk 0:00:34.2]} 26. f4 {[%clk 0:01:27.4]} 26... Be7 {[%clk 0:00:28.7]}
27. f5 {[%clk 0:01:25.8]} 27... Ng5 {[%clk 0:00:17]} 28. h4 {[%clk 0:01:19.3]}
28... Nh7 {[%clk 0:00:11.4]} 29. Bxh6 {[%clk 0:01:05.2]} 29... Bf8 {[%clk
0:00:11.1]} 30. Be3 {[%clk 0:00:43.3]} 30... Qd5 {[%clk 0:00:09.6]} 31. b3
{[%clk 0:00:36.5]} 31... Kh8 {[%clk 0:00:09.5]} 32. Qf3 {[%clk 0:00:34.9]} 32...
Qd7 {[%clk 0:00:08.5]} 33. Kh2 {[%clk 0:00:28.8]} 33... Be7 {[%clk 0:00:08.9]}
34. Qe4 {[%clk 0:00:26.7]} 34... Qd8 {[%clk 0:00:07.7]} 35. Bf2 {[%clk
0:00:24.6]} 35... Qd1 {[%clk 0:00:06.4]} 36. Qa8+ {[%clk 0:00:20.4]} 36... Nf8
{[%clk 0:00:02.9]} 37. f6 {[%clk 0:00:20.5]} 37... gxf6 {[%clk 0:00:01.6]} 38.
exf6 {[%clk 0:00:21.4]} 38... Bd6+ {[%clk 0:00:02.2]} 39. Nxd6 {[%clk
0:00:20.3]} 39... Qxd6+ {[%clk 0:00:03.1]} 40. Bg3 {[%clk 0:00:20.9]} 40... Qxf6
{[%clk 0:00:01.8]} 41. Qxf8+ {[%clk 0:00:19.2]} 41... Kh7 {[%clk 0:00:02.5]} 42.
Qxc5 {[%clk 0:00:19.1]} 42... Qe6 {[%clk 0:00:03]} 43. Qh5+ {[%clk 0:00:18.5]}
43... Kg8 {[%clk 0:00:03.6]} 44. Qg5+ {[%clk 0:00:18.7]} 44... Kf8 {[%clk
0:00:03.8]} 45. Qd8+ {[%clk 0:00:17.9]} 45... Kg7 {[%clk 0:00:04.3]} 46. Qd4+
{[%clk 0:00:18.4]} 46... f6 {[%clk 0:00:04.9]} 47. Qxb4 {[%clk 0:00:18.6]} 47...
Qf5 {[%clk 0:00:05.6]} 48. Qf4 {[%clk 0:00:18.6]} 48... Qxc2 {[%clk 0:00:05.2]}
49. b4 {[%clk 0:00:18.2]} 49... Qg6 {[%clk 0:00:04.8]} 50. Kh3 {[%clk
0:00:17.2]} 50... Qf7 {[%clk 0:00:04.9]} 51. Qg4+ {[%clk 0:00:17]} 51... Kh7
{[%clk 0:00:04.9]} 52. h5 {[%clk 0:00:17.2]} 52... Qe7 {[%clk 0:00:04.5]} 53.
Bh4 {[%clk 0:00:15.6]} 53... Qe3+ {[%clk 0:00:04]} 54. Kh2 {[%clk 0:00:13.7]}
54... Qe5+ {[%clk 0:00:04.4]} 55. Kh3 {[%clk 0:00:14.1]} 55... Qe3+ {[%clk
0:00:04.3]} 56. Qg3 {[%clk 0:00:14.6]} 56... Qe6+ {[%clk 0:00:04.4]} 57. Kh2
{[%clk 0:00:15.3]} 57... Qf5 {[%clk 0:00:04.7]} 58. Qg6+ {[%clk 0:00:15.3]}
58... Qxg6 {[%clk 0:00:04.8]} 59. hxg6+ {[%clk 0:00:16.2]} 59... Kxg6 {[%clk
0:00:05.7]} 60. b5 {[%clk 0:00:17.1]} 60... Kh5 {[%clk 0:00:05.4]} 61. bxa6
{[%clk 0:00:16.9]} 61... Kxh4 {[%clk 0:00:06.3]} 62. a7 {[%clk 0:00:17.4]} 62...
f5 {[%clk 0:00:07.2]} 63. a8=Q {[%clk 0:00:17.9]} 63... Kg4 {[%clk 0:00:08.1]}
64. Qf3+ {[%clk 0:00:17.4]} 64... Kg5 {[%clk 0:00:09]} 65. a6 {[%clk 0:00:17.6]}
65... Kh4 {[%clk 0:00:09.9]} 66. g3+ {[%clk 0:00:17.3]} 66... Kg5 {[%clk
0:00:10.8]} 67. Qf4+ {[%clk 0:00:17.5]} 67... Kh5 {[%clk 0:00:11.1]} 68. a7
{[%clk 0:00:17.7]} 68... Kg6 {[%clk 0:00:11.2]} 69. a8=Q {[%clk 0:00:18.6]}
69... Kh5 {[%clk 0:00:12.1]} 70. Qh8+ {[%clk 0:00:18.4]} 70... Kg6 {[%clk
0:00:12.3]} 71. Qhh6+ {[%clk 0:00:18.8]} 71... Kf7 {[%clk 0:00:13.2]} 72. Qc7+
{[%clk 0:00:18.7]} 72... Ke8 {[%clk 0:00:14.1]} 73. Qhf4 {[%clk 0:00:14.9]}
73... Kf8 {[%clk 0:00:13.2]} 74. Qxf5+ {[%clk 0:00:15.1]} 74... Kg8 {[%clk
0:00:13.5]} 75. Qfd7 {[%clk 0:00:13.1]} 75... Kf8 {[%clk 0:00:13.7]} 76. g4
{[%clk 0:00:13.4]} 76... Kg8 {[%clk 0:00:14.1]} 77. g5 {[%clk 0:00:14.3]} 77...
Kf8 {[%clk 0:00:15]} 78. g6 {[%clk 0:00:15.2]} 78... Kg8 {[%clk 0:00:15.9]} 79.
Qh7+ {[%clk 0:00:14.6]} 79... Kf8 {[%clk 0:00:16.8]} 80. g7+ {[%clk 0:00:14.9]}
80... Ke8 {[%clk 0:00:16.7]} 81. g8=R# {[%clk 0:00:13.7]} 1-0